bitfinex/quotes_SOLUSD_20241225
["timestamp","ask_amount","ask_price","bid_price","bid_amount"]
[1735098123832,9.57285985,200.44,200.35,41.21405985]
[1735098124445,9.57285985,200.43,200.35,41.21405985]
[1735098126845,0.93558833,200.47,200.35,41.21405985]
[1735098127047,9.57285985,200.43,200.35,41.21405985]
[1735098128149,9.57285985,200.43,200.35,1.6412]
[1735098128336,9.57285985,200.42,200.35,1.6412]
[1735098128539,9.57285985,200.42,200.35,11.21405985]
[1735098129237,0.93562196,200.41,200.35,11.21405985]
[1735098130553,0.93567785,200.45,200.35,11.21405985]
[1735098130733,9.57285985,200.43,200.35,11.21405985]
[1735098133450,9.57285985,200.42,200.35,11.21405985]
[1735098134354,0.93567095,200.41,200.35,11.21405985]
[1735098134558,9.57285985,200.42,200.35,11.21405985]
[1735098134859,0.9356629,200.41,200.35,11.21405985]
[1735098135460,9.57285985,200.42,200.35,11.21405985]
[1735098135756,0.93566967,200.41,200.35,11.21405985]
[1735098135979,9.57285985,200.42,200.35,11.21405985]
[1735098139958,9.57285985,200.42,200.35,1.6412]
[1735098144172,9.57285985,200.43,200.36,9.57285985]
[1735098144459,21.6439,200.5,200.36,9.57285985]
[1735098144460,9.57285985,200.47,200.4,9.57285985]
[1735098144662,0.93532794,200.52,200.44,9.57285985]
[1735098144968,9.57285985,200.52,200.45,9.57285985]
[1735098145167,9.57285985,200.52,200.44,9.57285985]
[1735098146634,0.93516374,200.55,200.43,0.74813591]
[1735098146858,9.57285985,200.53,200.46,9.57285985]
[1735098147966,9.57285985,200.52,200.45,39.57285985]
[1735098148867,9.57285985,200.51,200.44,9.57285985]
[1735098150158,9.57285985,200.52,200.44,9.57285985]
[1735098154489,0.93514041,200.55,200.44,9.57285985]
[1735098154649,0.93514041,200.55,200.46,9.57285985]
[1735098154862,9.57285985,200.54,200.47,9.57285985]
[1735098155161,9.57285985,200.53,200.46,9.57285985]
[1735098156371,9.57285985,200.53,200.45,40.3209133]
[1735098156567,9.57285985,200.52,200.45,0.74805345]
[1735098156772,9.57285985,200.51,200.44,9.57285985]
[1735098157668,0.93520397,200.55,200.44,9.57285985]
[1735098157669,9.57285985,200.52,200.44,9.57285985]
[1735098159980,10.50805291,200.51,200.42,44.86296318]
[1735098160180,9.57285985,200.5,200.42,1.6416]
[1735098160385,18.7443,200.54,200.42,1.6416]
[1735098160386,10.50818518,200.49,200.42,1.6416]
[1735098160563,9.57285985,200.46,200.39,9.57285985]
[1735098160883,9.57285985,200.44,200.37,1.5219]
[1735098161064,9.57285985,200.44,200.37,11.09475985]
[1735098161747,9.57285985,200.45,200.38,9.57285985]
[1735098162378,9.57285985,200.45,200.37,1.5219]
[1735098162587,9.57285985,200.45,200.38,9.57285985]
[1735098163271,9.57285985,200.46,200.38,9.57285985]
[1735098163468,10.5083486,200.45,200.37,11.09475985]
[1735098164862,9.57285985,200.46,200.37,11.84309385]
[1735098165066,0.93550897,200.45,200.37,11.84309385]
[1735098165578,10.50836882,200.45,200.37,11.84309385]
[1735098165879,10.50836882,200.45,200.34,12.4787]
[1735098166060,9.57285985,200.41,200.33,30.0]
[1735098166263,9.57285985,200.41,200.33,39.57285985]
[1735098168683,2.58280897,200.45,200.33,39.57285985]
[1735098168984,9.57285985,200.41,200.33,39.57285985]
[1735098169173,9.57285985,200.41,200.33,9.57285985]
[1735098169679,0.93570115,200.4,200.33,9.57285985]
[1735098169986,9.57285985,200.38,200.31,9.57285985]
[1735098175092,9.57285985,200.39,200.32,9.57285985]
[1735098175267,0.93584137,200.43,200.33,9.57285985]
[1735098175268,9.57285985,200.4,200.33,9.57285985]
[1735098175667,9.57285985,200.41,200.34,9.57285985]
[1735098178289,0.93571859,200.4,200.34,9.57285985]
[1735098178459,0.93571859,200.4,200.33,9.57285985]
[1735098178664,10.50857844,200.4,200.33,9.57285985]
[1735098178872,9.57285985,200.39,200.32,9.57285985]
[1735098179076,9.57285985,200.37,200.3,30.0]
[1735098179361,9.57285985,200.37,200.29,22.05425985]
[1735098180078,9.57285985,200.37,200.3,9.57285985]
[1735098180282,9.57285985,200.38,200.31,9.57285985]
[1735098180885,20.0,200.42,200.31,9.57285985]
[1735098181089,9.57285985,200.39,200.31,9.57285985]
[1735098183592,9.57285985,200.4,200.33,9.57285985]
[1735098185093,9.57285985,200.37,200.3,29.57285985]
[1735098185591,10.50858746,200.39,200.31,9.57285985]
[1735098185798,9.57285985,200.38,200.31,9.57285985]
[1735098186171,9.57285985,200.39,200.32,9.57285985]
[1735098186586,9.57285985,200.41,200.33,9.57285985]
[1735098188295,9.57285985,200.4,200.32,10.32143607]
[1735098188468,9.57285985,200.39,200.31,9.57285985]
[1735098188869,9.57285985,200.38,200.31,9.57285985]
[1735098190092,9.57285985,200.38,200.3,20.74861681]
[1735098190268,20.0,200.43,200.29,40.3214866]
[1735098190269,10.50864329,200.37,200.29,40.3214866]
[1735098191097,10.50864329,200.37,200.29,10.3214866]
[1735098191484,9.57285985,200.34,200.3,20.0]
[1735098191808,9.57285985,200.34,200.27,2.27061644]
[1735098192088,9.57285985,200.34,200.27,1.5219]
[1735098192296,9.57285985,200.33,200.27,1.5219]
[1735098192505,9.57285985,200.34,200.27,1.5219]
[1735098192976,9.57285985,200.34,200.27,11.09475985]
[1735098193968,9.57285985,200.34,200.27,9.57285985]
[1735098194169,9.57285985,200.31,200.24,9.57285985]
[1735098196035,9.57285985,200.31,200.22,2.31387062]
[1735098196036,9.57285985,200.28,200.21,9.57285985]
[1735098196294,0.93616102,200.3,200.2,9.57285985]
[1735098196295,10.50917777,200.27,200.2,9.57285985]
[1735098196502,9.57285985,200.28,200.21,9.57285985]
[1735098196877,9.57285985,200.29,200.21,9.57285985]
[1735098197078,0.93628702,200.28,200.21,9.57285985]
[1735098197911,10.50914687,200.28,200.21,9.57285985]
[1735098198281,9.57285985,200.27,200.2,29.57285985]
[1735098198785,9.57285985,200.27,200.18,2.31406838]
[1735098198998,9.57285985,200.25,200.17,0.74909913]
[1735098199190,9.57285985,200.23,200.16,9.57285985]
[1735098199912,0.93635532,200.22,200.16,9.57285985]
[1735098200113,10.50921517,200.22,200.15,9.57285985]
[1735098200618,10.50921517,200.22,200.13,1.565]
[1735098200619,10.50921517,200.22,200.14,9.57285985]
[1735098200795,9.57285985,200.21,200.13,1.565]
[1735098200991,9.57285985,200.21,200.14,9.57285985]
[1735098201191,0.93635532,200.2,200.14,9.57285985]
[1735098203018,9.57285985,200.21,200.14,9.57285985]
[1735098203218,15.67965985,200.24,200.17,9.57285985]
[1735098203414,9.57285985,200.26,200.19,9.57285985]
[1735098203604,9.57285985,200.27,200.2,9.57285985]
[1735098204829,10.50921412,200.26,200.19,9.57285985]
[1735098205510,6.5404,200.29,200.23,9.57285985]
[1735098205712,6.5404,200.29,200.24,9.57285985]
[1735098205911,6.5404,200.29,200.23,9.57285985]
[1735098206134,1.5323,200.3,200.23,10.32176346]
[1735098207417,9.57285985,200.31,200.23,10.32176346]
[1735098207719,9.57285985,200.33,200.25,9.57285985]
[1735098208221,10.50891179,200.33,200.25,9.57285985]
[1735098210619,9.57285985,200.31,200.23,10.32176346]
[1735098211523,9.57285985,200.29,200.21,9.57285985]
[1735098211908,9.57285985,200.29,200.21,39.57285985]
[1735098212110,9.57285985,200.31,200.23,9.57285985]
[1735098212419,9.57285985,200.31,200.24,0.748921]
[1735098214920,0.93622657,200.33,200.24,0.748921]
[1735098215125,9.57285985,200.31,200.24,0.748921]
[1735098215937,9.57285985,200.31,200.23,10.32175065]
[1735098216141,10.50903308,200.3,200.23,9.57285985]
[1735098216507,9.57285985,200.28,200.21,20.0]
[1735098216709,0.93631626,200.27,200.19,10.32191285]
[1735098217537,0.93631626,200.27,200.18,42.4887]
[1735098217741,9.57285985,200.26,200.18,42.4887]
[1735098218117,9.57285985,200.26,200.19,9.57285985]
[1735098218909,9.57285985,200.27,200.19,9.57285985]
[1735098219904,0.93635532,200.26,200.19,9.57285985]
[1735098220527,9.57285985,200.27,200.19,9.57285985]
[1735098220929,10.50921517,200.26,200.18,20.0]
[1735098221105,10.50921517,200.26,200.18,29.57285985]
[1735098221707,10.50921517,200.26,200.18,9.57285985]
[1735098223467,9.57285985,200.25,200.18,9.57285985]
[1735098223635,0.93635532,200.24,200.18,9.57285985]
[1735098224154,10.50921517,200.24,200.15,30.0]
[1735098224353,9.57285985,200.23,200.15,9.57285985]
[1735098226159,0.93635532,200.26,200.15,9.57285985]
[1735098226353,9.57285985,200.23,200.16,9.57285985]
[1735098227253,9.57285985,200.22,200.15,9.57285985]
[1735098227863,9.57285985,200.22,200.14,13.2399408]
[1735098228036,9.57285985,200.22,200.15,9.57285985]
[1735098229361,9.57285985,200.23,200.15,9.57285985]
[1735098230239,9.57285985,200.23,200.14,0.7492408]
[1735098230564,6.3168,200.27,200.14,0.7492408]
[1735098230565,9.57285985,200.21,200.14,9.57285985]
[1735098231758,0.93635532,200.26,200.14,9.57285985]
[1735098231950,9.57285985,200.22,200.14,9.57285985]
[1735098235849,9.57285985,200.22,200.13,0.74922734]
[1735098236051,9.57285985,200.22,200.14,9.57285985]
[1735098236242,9.57285985,200.22,200.15,9.57285985]
[1735098238664,0.93635532,200.26,200.16,10.32212486]
[1735098238869,9.57285985,200.25,200.18,9.57285985]
[1735098239068,9.57285985,200.25,200.17,9.57285985]
[1735098239363,9.57285985,200.24,200.16,10.32212486]
[1735098243275,0.93635532,200.23,200.15,30.0]
[1735098243474,9.57285985,200.24,200.15,39.57285985]
[1735098243773,0.93635532,200.26,200.16,0.74920947]
[1735098243951,9.57285985,200.24,200.16,0.74920947]
[1735098244151,9.57285985,200.24,200.17,9.57285985]
[1735098248270,0.93635532,200.23,200.15,39.57285985]
[1735098248459,9.57285985,200.22,200.15,39.57285985]
[1735098250576,10.50921517,200.26,200.17,9.57285985]
[1735098250762,10.50921517,200.26,200.18,0.74910993]
[1735098251853,9.57285985,200.26,200.19,9.57285985]
[1735098252587,6.3168,200.27,200.2,9.57285985]
[1735098252753,1.34968415,215.74,200.23,9.57285985]
[1735098252754,6.4636,200.32,200.23,9.57285985]
[1735098253076,16.03645985,200.32,200.25,9.57285985]
[1735098253678,16.03645985,200.32,200.24,9.57285985]
[1735098253861,9.57285985,200.3,200.22,9.57285985]
[1735098254064,9.57285985,200.29,200.21,40.32189553]
[1735098265771,9.57285985,200.29,200.21,30.74903568]
[1735098266088,9.57285985,200.29,200.21,10.32189553]
[1735098266271,9.57285985,200.29,200.21,9.57285985]
[1735098267861,0.93628991,200.31,200.21,9.57285985]
[1735098268082,9.57285985,200.29,200.21,9.57285985]
[1735098275491,9.57285985,200.29,200.2,13.23590923]
[1735098275798,9.57285985,200.27,200.19,10.32191523]
[1735098276004,0.93635532,200.26,200.19,10.32191523]
[1735098276185,0.93635532,200.26,200.19,9.57285985]
[1735098277504,15.84305985,200.25,200.17,0.74910201]
[1735098277677,9.57285985,200.21,200.14,7.82415598]
[1735098277874,9.57285985,200.19,200.14,7.82415598]
[1735098278081,10.50921517,200.18,200.14,7.82415598]
[1735098278396,15.84305985,200.17,200.14,7.82415598]
[1735098278897,10.50921517,200.16,200.09,39.57285985]
[1735098279294,10.50921517,200.16,200.07,8.57364182]
[1735098279498,9.57285985,200.15,200.07,18.14650167]
[1735098279704,9.57285985,200.13,200.07,7.82415598]
[1735098280003,9.57285985,200.13,200.05,18.14653667]
[1735098281307,9.57285985,200.13,200.05,10.32238069]
[1735098282584,6.2702,200.17,200.09,9.57285985]
[1735098282783,6.2702,200.17,200.11,9.57285985]
[1735098283704,15.84305985,200.17,200.1,9.57285985]
[1735098285613,15.84305985,200.17,200.08,0.74945366]
[1735098285784,6.2702,200.17,200.08,10.32234317]
[1735098286130,15.84305985,200.17,200.1,9.57285985]
[1735098289611,15.84305985,200.17,200.08,10.32234317]
[1735098290597,0.93635532,200.16,200.08,10.32234317]
[1735098290800,9.57285985,200.15,200.07,30.0]
[1735098291118,0.93635532,200.14,200.07,39.57285985]
[1735098293402,9.57285985,200.14,200.07,39.57285985]
[1735098293605,9.57285985,200.16,200.08,10.32238397]
[1735098293805,6.2702,200.17,200.11,9.57285985]
[1735098294003,6.2702,200.17,200.12,9.57285985]
[1735098294202,6.2702,200.17,200.13,9.57285985]
[1735098297315,6.2702,200.17,200.12,10.32217985]
[1735098297921,6.2702,200.17,200.12,9.57285985]
[1735098298995,6.2702,200.17,200.1,40.32218735]
[1735098299926,6.2702,200.17,200.11,9.57285985]
[1735098301411,6.2702,200.17,200.1,30.7493275]
[1735098301611,6.2702,200.17,200.11,9.57285985]
[1735098304416,1.5785,200.19,200.1,30.7493275]
[1735098304616,11.14175985,200.25,200.17,9.57285985]
[1735098304827,1.5689,200.25,200.2,9.57285985]
[1735098305126,1.5689,200.25,200.18,0.74913945]
[1735098305127,15.59155985,200.28,200.21,9.57285985]
[1735098305307,6.0187,200.28,200.22,9.57285985]
[1735098305510,6.0187,200.28,200.23,9.57285985]
[1735098305710,9.57285985,200.31,200.24,9.57285985]
[1735098305908,7.5876,200.36,200.16,38.2914394]
[1735098305909,0.93606921,200.35,200.25,40.32171522]
[1735098306129,9.57285985,200.3,200.22,30.0]
[1735098306442,9.57285985,200.27,200.2,9.57285985]
[1735098306623,9.57285985,200.26,200.19,39.57285985]
[1735098306923,9.57285985,200.26,200.19,30.0]
[1735098307132,9.57285985,200.26,200.19,29.57285985]
[1735098307533,9.57285985,200.28,200.2,10.32190222]
[1735098309234,0.93624826,200.3,200.2,10.32190222]
[1735098309235,9.57285985,200.27,200.2,10.32190222]
[1735098309533,9.57285985,200.26,200.19,29.57285985]
[1735098309732,15.73255985,200.26,200.18,9.57285985]
[1735098309937,10.50919817,200.25,200.18,9.57285985]
[1735098310540,9.57285985,200.24,200.17,10.32192573]
[1735098310835,0.93635532,200.23,200.16,39.57285985]
[1735098311025,9.57285985,200.22,200.15,9.57285985]
[1735098311227,9.57285985,200.21,200.14,10.32209048]
[1735098312239,9.57285985,200.22,200.14,10.32209048]
[1735098312417,9.57285985,200.23,200.15,9.57285985]
[1735098312738,6.1597,200.26,200.14,9.57285985]
[1735098312739,9.57285985,200.21,200.14,9.57285985]
[1735098313523,9.57285985,200.21,200.13,40.32216321]
[1735098314242,9.57285985,200.22,200.14,9.57285985]
[1735098314462,9.57285985,200.22,200.15,9.57285985]
[1735098314756,9.57285985,200.24,200.17,9.57285985]
[1735098314931,9.57285985,200.24,200.16,30.0]
[1735098314932,9.57285985,200.24,200.16,39.57285985]
[1735098315122,9.57285985,200.24,200.16,40.32201813]
[1735098315971,7.09605532,200.26,200.1,26.5133]
[1735098315972,9.57285985,200.22,200.15,9.57285985]
[1735098316253,9.57285985,200.22,200.13,30.0]
[1735098316254,10.50921517,200.21,200.13,10.32215822]
[1735098317256,10.50921517,200.21,200.13,9.57285985]
[1735098317956,9.57285985,200.21,200.14,9.57285985]
[1735098318144,9.57285985,200.22,200.14,10.32216399]
[1735098318345,9.57285985,200.22,200.15,9.57285985]
[1735098318857,9.57285985,200.23,200.15,9.57285985]
[1735098319157,0.93635532,200.22,200.15,9.57285985]
[1735098319563,9.57285985,200.23,200.15,9.57285985]
[1735098320861,0.93635532,200.25,200.16,9.57285985]
[1735098321046,9.57285985,200.25,200.17,9.57285985]
[1735098322279,9.57285985,200.22,200.14,9.57285985]
[1735098322440,0.93635532,200.21,200.14,9.57285985]
[1735098322954,9.57285985,200.22,200.14,9.57285985]
[1735098323469,0.93635532,200.21,200.14,9.57285985]
[1735098324357,9.57285985,200.2,200.1,30.0]
[1735098324563,10.50921517,200.19,200.12,9.57285985]
[1735098326861,10.50921517,200.19,200.11,9.57285985]
[1735098327062,10.50921517,200.19,200.08,12.4944]
[1735098327063,9.57285985,200.18,200.08,12.4944]
[1735098327256,0.93635532,200.17,200.1,9.57285985]
[1735098327674,9.57285985,200.15,200.06,38.57362019]
[1735098327965,9.57285985,200.13,200.05,7.82415598]
[1735098328136,0.93635532,200.12,200.06,9.57285985]
[1735098328860,10.50921517,200.12,200.05,17.39701583]
[1735098329059,10.50921517,200.12,200.05,9.57285985]
[1735098330262,10.50921517,200.12,200.03,30.7495539]
[1735098330761,9.57285985,200.11,200.03,30.0]
[1735098330982,16.23885985,200.08,200.01,42.63256234]
[1735098331142,6.666,200.08,200.01,52.20542219]
[1735098331345,6.666,200.08,200.02,9.57285985]
[1735098332268,10.50921517,200.07,200.01,42.63256234]
[1735098332461,10.50921517,200.07,199.99,9.57285985]
[1735098333767,10.50921517,200.07,200.0,9.57285985]
[1735098334154,6.666,200.08,200.04,9.57285985]
[1735098334351,16.23885985,200.13,200.05,9.57285985]
[1735098334566,10.50921517,200.12,200.05,9.57285985]
[1735098335545,10.50921517,200.12,200.04,9.57285985]
[1735098341077,9.57285985,200.11,200.04,9.57285985]
[1735098343092,6.666,200.13,200.07,9.57285985]
[1735098343256,16.12385985,200.18,200.1,9.57285985]
[1735098343584,6.551,200.18,200.12,9.57285985]
[1735098344887,9.57285985,200.14,200.03,30.0]
[1735098345100,9.57285985,200.1,200.02,17.39701583]
[1735098345663,9.57285985,200.1,200.02,9.57285985]
[1735098345984,0.93635532,200.09,200.0,12.4998]
[1735098346219,9.57285985,200.06,199.99,9.57285985]
[1735098348182,15.01275484,200.07,199.99,15.01275484]
[1735098349402,22.50011016,200.09,200.01,15.01275484]
[1735098349567,21.56375484,200.09,200.01,15.01275484]
[1735098350417,21.56375484,200.09,200.02,30.0]
[1735098350607,6.551,200.09,200.03,15.01275484]
[1735098351798,22.50011016,200.09,200.01,15.01275484]
[1735098353893,15.01275484,200.06,199.98,15.01275484]
[1735098354087,15.94911016,200.05,199.97,15.01275484]
[1735098356307,15.94911016,200.05,199.98,15.01275484]
[1735098357414,0.93635532,200.05,199.99,15.01275484]
[1735098359926,15.94911016,200.05,199.98,15.01275484]
[1735098361124,15.01275484,200.04,199.96,15.01275484]
[1735098361323,15.01275484,200.01,199.93,30.0]
[1735098361528,15.94911016,200.01,199.94,15.01275484]
[1735098361892,15.01275484,200.0,199.93,15.01275484]
[1735098362114,15.94911016,199.99,199.92,15.01275484]
[1735098362905,20.93635532,199.99,199.92,15.01275484]
[1735098363100,0.93635532,199.99,199.93,15.01275484]
[1735098363302,7.7726,200.02,199.97,15.01275484]
[1735098365841,7.7726,200.02,199.96,15.01275484]
[1735098366933,7.7726,200.02,199.95,15.01275484]
[1735098370344,7.7726,200.02,199.96,15.01275484]
[1735098372051,7.7726,200.02,199.95,15.01275484]
[1735098372565,15.01275484,199.99,199.91,35.01275484]
[1735098372753,0.93635532,199.98,199.91,15.01275484]
[1735098374765,7.7726,200.02,199.96,15.01275484]
[1735098375073,15.01275484,200.05,199.98,15.01275484]
[1735098375248,15.94911016,200.04,199.97,15.01275484]
[1735098375965,15.94911016,200.04,199.96,15.01275484]
[1735098376131,15.01275484,200.03,199.95,27.51575484]
[1735098376331,0.93635532,200.02,199.95,27.51575484]
[1735098376531,15.94911016,200.02,199.95,15.01275484]
[1735098379665,15.94911016,200.02,199.92,13.2548936]
[1735098379848,15.94911016,200.02,199.93,15.01275484]
[1735098381163,15.01275484,200.02,199.95,15.01275484]
[1735098383077,15.01275484,200.02,199.93,15.01275484]
[1735098383078,8.86255532,200.01,199.93,15.01275484]
[1735098383283,8.86255532,200.01,199.91,15.01275484]
[1735098383284,15.01275484,199.98,199.91,15.01275484]
[1735098383439,0.93635532,199.97,199.91,15.01275484]
[1735098384057,0.93635532,199.97,199.9,12.5057]
[1735098384843,15.01275484,199.93,199.86,0.6494245]
[1735098385168,15.94911016,199.92,199.86,0.6494245]
[1735098385356,0.93635532,199.92,199.86,0.6494245]
[1735098385557,0.93635532,199.92,199.86,15.66217934]
[1735098386044,0.93635532,199.92,199.86,0.6494245]
[1735098386553,0.93635532,199.92,199.86,15.66217934]
[1735098387050,6.27,199.95,199.91,15.01275484]
[1735098387360,1.6562,199.97,199.93,15.01275484]
[1735098388463,1.6562,199.97,199.92,15.01275484]
[1735098390166,16.66895484,199.97,199.91,20.0]
[1735098390769,16.66895484,199.97,199.89,15.01275484]
[1735098390978,16.66895484,199.97,199.89,27.51955484]
[1735098391570,16.66895484,199.97,199.86,28.17077934]
[1735098391571,15.01275484,199.94,199.86,28.17077934]
[1735098391779,0.93635532,199.93,199.86,28.17077934]
[1735098392362,15.01275484,199.92,199.86,0.6494245]
[1735098392665,15.01275484,199.94,199.87,15.01275484]
[1735098394178,15.01275484,199.95,199.87,15.01275484]
[1735098394355,0.93635532,199.94,199.87,15.01275484]
[1735098395975,15.94911016,199.94,199.87,15.01275484]
[1735098397985,0.93635532,199.94,199.88,15.01275484]
[1735098399179,15.94911016,199.94,199.87,15.01275484]
[1735098404181,10.55710016,199.94,199.87,9.62074484]
[1735098405574,9.62074484,199.93,199.86,10.27016934]
[1735098405772,0.93635532,199.92,199.86,10.27016934]
[1735098405987,0.93635532,199.92,199.86,0.6494245]
[1735098406190,0.93635532,199.92,199.86,10.27016934]
[1735098408193,10.55710016,199.92,199.86,0.6494245]
[1735098408359,9.62074484,199.9,199.86,0.6494245]
[1735098408566,0.93635532,199.89,199.86,0.6494245]
[1735098409162,10.55710016,199.89,199.86,0.6494245]
[1735098409387,0.93635532,199.89,199.86,0.6494245]
[1735098413094,6.5313,199.92,199.86,10.27016934]
[1735098413276,0.93635532,199.91,199.86,10.27016934]
[1735098413758,6.5313,199.92,199.88,9.62074484]
[1735098414263,6.5313,199.92,199.86,0.6494245]
[1735098414264,6.5313,199.92,199.87,9.62074484]
[1735098415199,16.15204484,199.92,199.86,0.6494245]
[1735098415409,0.93635532,199.91,199.86,0.6494245]
[1735098415882,10.55710016,199.91,199.86,0.6494245]
[1735098416907,0.93635532,199.91,199.86,0.6494245]
[1735098419671,16.15204484,199.92,199.86,0.6494245]
[1735098421800,0.93635532,199.91,199.86,0.6494245]
[1735098422896,9.62074484,199.9,199.86,0.6494245]
[1735098423103,0.93635532,199.89,199.86,0.6494245]
[1735098425302,10.55710016,199.89,199.86,0.6494245]
[1735098425675,9.62074484,199.87,199.86,0.6494245]
[1735098426204,33.52311884,199.87,199.86,0.6494245]
[1735098426501,2.55875532,199.89,199.86,0.6494245]
[1735098426694,9.62074484,199.87,199.86,0.6494245]
[1735098428497,10.55710016,199.87,199.86,0.6494245]
[1735098428841,34.45947416,199.87,199.86,0.6494245]
[1735098429187,41.10597416,199.87,199.86,0.6494245]
[1735098429804,41.10597416,199.87,199.86,1e-08]
[1735098429982,40.98048416,199.87,199.72,9.62074484]
[1735098430298,40.98048416,199.87,199.71,1.6442]
[1735098430299,9.62074484,199.78,199.71,1.6442]
[1735098430520,10.55710016,199.77,199.71,1.6442]
[1735098430673,10.55710016,199.77,199.7,17.44490082]
[1735098431076,10.55710016,199.77,199.7,7.82415598]
[1735098431278,9.62074484,199.76,199.7,7.82415598]
[1735098431498,0.93635532,199.75,199.7,7.82415598]
[1735098431693,0.93635532,199.75,199.69,25.28484177]
[1735098431694,0.93635532,199.75,199.69,9.62074484]
[1735098432226,0.93635532,199.75,199.66,2.2936245]
[1735098432400,9.55710016,199.76,199.69,9.62074484]
[1735098432706,9.62074484,199.77,199.7,9.62074484]
[1735098433097,9.62074484,199.76,199.69,9.62074484]
[1735098433583,9.62074484,199.77,199.7,9.62074484]
[1735098434286,9.62074484,199.74,199.66,0.6494245]
[1735098434490,9.62074484,199.73,199.66,10.27016934]
[1735098434898,9.62074484,199.73,199.66,0.6494245]
[1735098435102,9.62074484,199.72,199.66,0.6494245]
[1735098435610,20.0,199.69,199.66,0.6494245]
[1735098436194,33.52311884,199.7,199.66,0.6494245]
[1735098436390,23.776884,199.72,199.66,0.6494245]
[1735098436598,9.62074484,199.71,199.66,0.6494245]
[1735098436918,6.6465,199.73,199.66,10.27016934]
[1735098437286,16.26724484,199.73,199.66,0.6494245]
[1735098437491,16.26724484,199.73,199.66,10.27016934]
[1735098437994,16.26724484,199.73,199.66,0.6494245]
[1735098438196,21.71169088,199.73,199.66,0.6494245]
[1735098438688,21.71169088,199.73,199.66,15.71461538]
[1735098439714,6.6465,199.73,199.66,15.71461538]
[1735098439928,15.06519088,199.74,199.66,15.71461538]
[1735098440084,15.06519088,199.72,199.66,15.71461538]
[1735098440588,15.06519088,199.73,199.66,0.6494245]
[1735098443313,15.06519088,199.73,199.66,15.71461538]
[1735098444132,15.06519088,199.73,199.66,0.6494245]
[1735098445329,15.06519088,199.73,199.66,15.71461538]
[1735098445500,15.06519088,199.76,199.69,15.06519088]
[1735098447193,15.06519088,199.76,199.68,15.06519088]
[1735098447486,15.06519088,199.72,199.66,0.6494245]
[1735098448115,15.06519088,199.7,199.66,0.6494245]
[1735098448433,15.06519088,199.71,199.66,0.6494245]
[1735098449713,15.06519088,199.72,199.66,0.6494245]
[1735098454345,15.06519088,199.71,199.66,0.6494245]
[1735098457136,15.06519088,199.73,199.66,15.71461538]
[1735098457456,15.06519088,199.76,199.69,15.06519088]
[1735098458344,9.63839377,199.76,199.69,9.63839377]
[1735098459622,9.63839377,199.79,199.7,9.63839377]
[1735098460343,9.63839377,199.8,199.73,11.27329377]
[1735098460529,9.63839377,199.79,199.73,1.6349]
[1735098460912,9.63839377,199.81,199.73,11.27329377]
[1735098461120,9.63839377,199.83,199.75,9.63839377]
[1735098462750,6.4998,199.98,199.79,9.63839377]
[1735098463040,9.63839377,199.9,199.83,9.63839377]
[1735098463218,9.63839377,199.89,199.82,9.63839377]
[1735098463418,9.63839377,199.89,199.82,11.27329377]
[1735098463637,9.63839377,199.9,199.83,9.63839377]
[1735098463845,9.63839377,199.9,199.82,11.27329377]
[1735098464243,15.03940518,199.88,199.82,1.6349]
[1735098464547,15.03940518,199.87,199.82,1.6349]
[1735098464847,15.03940518,199.88,199.82,1.6349]
[1735098466917,15.03940518,199.89,199.82,16.67430518]
[1735098467465,23.902374,199.92,199.82,16.67430518]
[1735098467742,23.776884,199.93,199.83,15.03940518]
[1735098467921,15.03940518,199.9,199.83,15.03940518]
[1735098468130,15.03940518,199.89,199.82,16.67430518]
[1735098468545,15.03940518,199.85,199.82,1.6349]
[1735098469249,15.03940518,199.84,199.82,1.6349]
[1735098469431,15.03940518,199.83,199.77,1.6349]
[1735098469748,15.03940518,199.84,199.77,16.67430518]
[1735098471737,15.03940518,199.85,199.77,16.67430518]
[1735098471940,15.03940518,199.84,199.77,16.67430518]
[1735098472427,15.03940518,199.83,199.77,1.6349]
[1735098474841,0.12549,199.88,199.77,16.67430518]
[1735098475051,15.03940518,199.84,199.77,16.67430518]
[1735098475526,15.03940518,199.81,199.77,1.6349]
[1735098477163,15.03940518,199.8,199.73,15.03940518]
[1735098477342,15.03940518,199.77,199.7,16.62130518]
[1735098480462,15.03940518,199.78,199.7,16.62130518]
[1735098481653,15.03940518,199.79,199.72,15.03940518]
[1735098481960,15.03940518,199.8,199.73,15.03940518]
[1735098482157,15.03940518,199.79,199.72,15.03940518]
[1735098483267,15.03940518,199.8,199.72,15.03940518]
[1735098484171,9.63472272,199.8,199.72,9.63472272]
[1735098484671,9.63472272,199.79,199.72,9.63472272]
[1735098484870,9.63472272,199.78,199.71,22.15282272]
[1735098485040,9.63472272,199.75,199.7,1.5819]
[1735098485247,9.63472272,199.74,199.7,1.5819]
[1735098485451,9.63472272,199.73,199.66,10.28414722]
[1735098485652,9.63472272,199.72,199.66,0.6494245]
[1735098486156,15.06511306,199.72,199.66,0.6494245]
[1735098486462,15.06511306,199.71,199.66,0.6494245]
[1735098487286,15.06511306,199.74,199.67,15.06511306]
[1735098488492,15.06511306,199.73,199.66,15.71453756]